bitfinex/quotes_ETHUSD_20251130
["timestamp","ask_amount","ask_price","bid_price","bid_amount"]
[1764542221026,1.1303,3028.9,3028.8,0.405504]
[1764542221027,4.87499028,3028.9,3028.8,0.405504]
[1764542221528,4.87499028,3028.9,3028.8,0.406504]
[1764542222097,5.20372044,3028.9,3028.8,0.001]
[1764542222334,5.61022444,3028.9,3028.8,0.001]
[1764542222506,5.28149428,3028.9,3028.8,0.001]
[1764542225238,9.05399866,3028.9,3028.8,0.001]
[1764542234321,5.61022444,3028.9,3028.8,0.001]
[1764542234527,5.6432366,3028.9,3028.8,0.001]
[1764542239652,5.31450644,3028.9,3028.8,0.001]
[1764542239857,5.6432366,3028.9,3028.8,0.001]
[1764542240028,2.01297784,3028.9,3028.8,0.001]
[1764542240229,1.354204,3028.9,3028.8,0.001]
[1764542240424,0.4679,3028.9,3028.8,0.001]
[1764542240731,0.52461216,3029.0,3028.8,0.001]
[1764542240924,0.4798,3029.1,3028.9,0.859604]
[1764542240925,0.03301216,3029.1,3028.9,0.859604]
[1764542241122,0.03301216,3029.1,3029.0,0.859604]
[1764542242330,0.03501216,3029.2,3029.1,0.405504]
[1764542242530,0.03501216,3029.2,3028.8,0.4916]
[1764542242531,0.03501216,3029.2,3028.9,0.405504]
[1764542244463,3.33622863,3029.2,3028.9,0.405504]
[1764542244665,0.03501216,3029.2,3028.9,0.405504]
[1764542246065,3.33624394,3029.2,3028.9,0.405504]
[1764542246434,3.79494394,3029.2,3028.9,0.405504]
[1764542247245,3.79494394,3029.2,3028.8,0.001]
[1764542248961,0.4652,3028.9,3028.8,0.001]
[1764542249561,3.7667286,3028.9,3028.8,0.001]
[1764542249767,4.6319326,3028.9,3028.8,0.001]
[1764542251748,4.66494476,3028.9,3028.8,0.001]
[1764542251948,0.43951616,3028.9,3028.8,0.001]
[1764542252267,4.20624476,3028.9,3028.8,0.001]
[1764542254067,4.66494476,3028.9,3028.8,0.001]
[1764542254561,5.6529718,3028.9,3028.8,0.001]
[1764542254967,5.98170196,3028.9,3028.8,0.001]
[1764542257282,6.91529607,3028.9,3028.8,0.001]
[1764542257569,6.88228391,3028.9,3028.8,0.001]
[1764542262844,6.88228391,3028.9,3028.5,0.001]
[1764542263175,4.76785912,3028.6,3028.5,0.001]
[1764542263643,5.22655912,3028.6,3028.5,0.001]
[1764542263844,5.35883403,3028.6,3028.5,0.001]
[1764542265073,8.66068967,3028.6,3028.5,0.001]
[1764542280574,1.51762427,3028.5,3028.3,0.001]
[1764542280774,0.84174232,3028.4,3028.3,0.001]
[1764542281086,4.50165912,3028.3,3028.2,0.001]
[1764542281289,5.41785912,3028.3,3028.2,0.001]
[1764542281783,5.55017428,3028.3,3028.2,0.001]
[1764542281986,6.28990935,3028.3,3028.2,0.001]
[1764542282594,9.59209209,3028.3,3028.2,0.001]
[1764542285370,0.72559411,3028.2,3027.8,0.001]
[1764542285561,1.81613643,3028.2,3027.8,0.001]
[1764542285762,3.15191679,3028.2,3027.8,0.001]
[1764542285962,3.28423545,3028.2,3027.8,0.001]
[1764542286197,3.28423545,3028.2,3026.0,0.1719]
[1764542286198,0.682,3027.6,3026.0,0.1719]
[1764542286427,0.682,3027.6,3024.4,1.31019408]
[1764542286428,0.32873016,3025.5,3025.2,0.1719]
[1764542286641,0.72559411,3026.0,3025.3,0.4645]
[1764542286924,0.72559411,3026.0,3025.2,0.1719]
[1764542286925,9.91440561,3025.9,3025.4,0.4673]
[1764542287079,11.4451269,3025.9,3025.4,0.4673]
[1764542287278,11.11639674,3025.9,3025.4,0.4673]
[1764542287475,11.57129674,3025.9,3025.4,0.4673]
[1764542287712,0.72559411,3025.6,3025.2,0.6364]
[1764542287881,0.209,3025.5,3025.2,0.6364]
[1764542288078,0.209,3025.5,3025.3,0.4645]
[1764542288280,0.72559411,3025.6,3025.4,0.4673]
[1764542288479,1.47161717,3025.6,3025.5,0.4673]
[1764542288703,6.93920776,3025.5,3025.2,0.6364]
[1764542289127,6.6104776,3025.5,3025.2,0.6364]
[1764542289294,6.93920776,3025.5,3025.2,0.6364]
[1764542289616,8.44356177,3025.5,3025.2,0.6364]
[1764542289780,8.11483161,3025.5,3025.2,0.1719]
[1764542289980,0.32873016,3025.3,3025.2,0.1719]
[1764542290505,0.32873016,3025.3,3025.2,0.6392]
[1764542290803,3.63418747,3025.3,3025.2,0.6392]
[1764542291003,3.51445731,3025.3,3025.2,0.6392]
[1764542291212,3.51445731,3025.3,3025.2,1.1037]
[1764542291704,4.15365731,3025.3,3025.2,0.6392]
[1764542291910,4.48238747,3025.3,3025.2,0.6392]
[1764542292214,4.15365731,3025.3,3025.2,0.6392]
[1764542292792,4.48238747,3025.3,3025.2,0.6392]
[1764542293298,5.4115855,3025.3,3025.2,0.6392]
[1764542293908,4.87385534,3025.3,3025.2,0.6392]
[1764542294113,4.15365731,3025.3,3025.2,0.6392]
[1764542294616,4.15365731,3025.3,3025.2,1.1037]
[1764542295378,3.94465731,3025.3,3025.2,1.1037]
[1764542295908,4.15365731,3025.3,3025.2,1.1037]
[1764542296919,0.6392,3025.3,3025.2,1.509204]
[1764542297225,4.29820789,3025.5,3025.2,1.509204]
[1764542297389,4.29820789,3025.5,3025.3,0.4645]
[1764542297588,0.03301216,3025.4,3025.3,0.4645]
[1764542297893,0.03301216,3025.4,3025.3,0.9318]
[1764542299005,3.33836021,3025.4,3025.3,0.9318]
[1764542307719,3.33836021,3025.4,3025.3,0.4673]
[1764542308322,3.33836021,3025.4,3025.3,0.9206]
[1764542310336,0.03301216,3025.4,3025.3,0.9206]
[1764542311034,0.03301216,3025.4,3025.3,0.9216]
[1764542311705,3.33836021,3025.4,3025.3,0.4569]
[1764542315040,0.03301216,3025.4,3025.3,1.315704]
[1764542315640,3.30528004,3025.5,3025.4,0.405504]
[1764542315844,3.30528004,3025.5,3025.4,1.314704]
[1764542316045,3.30719553,3025.6,3025.4,1.314704]
[1764542316241,3.30719553,3025.6,3025.5,0.4559]
[1764542316643,0.002,3025.6,3025.5,1.314704]
[1764542323922,0.002,3025.6,3025.5,0.861404]
[1764542324130,0.002,3025.6,3025.5,1.314704]
[1764542328636,0.002,3025.6,3025.5,1.315704]
[1764542329667,0.002,3025.6,3025.5,0.862404]
[1764542330166,0.002,3025.6,3025.5,1.315704]
[1764542331060,0.002,3025.6,3025.5,0.862404]
[1764542331262,0.002,3025.6,3025.5,0.406504]
[1764542331471,0.002,3025.6,3025.5,0.862404]
[1764542333248,0.002,3025.6,3025.5,0.406504]
[1764542333436,0.4586,3025.6,3025.5,0.406504]
[1764542333636,0.96351216,3025.6,3025.5,0.406504]
[1764542334256,0.49161216,3025.6,3025.5,0.406504]
[1764542334573,0.96351216,3025.6,3025.5,0.406504]
[1764542334949,4.26864172,3025.6,3025.5,0.306504]
[1764542336967,3.79674172,3025.6,3025.5,0.306504]
[1764542337273,4.26864172,3025.6,3025.5,0.306504]
[1764542337869,3.79674172,3025.6,3025.5,0.306504]
[1764542341451,0.96351216,3025.6,3025.5,0.306504]
[1764542341887,4.26864172,3025.6,3025.5,0.306504]
[1764542342052,3.79674172,3025.6,3025.5,0.306504]
[1764542342453,4.26864172,3025.6,3025.5,0.306504]
[1764542342654,4.59737188,3025.6,3025.5,0.306504]
[1764542342849,4.26864172,3025.6,3025.5,0.306504]
[1764542343049,3.79674172,3025.6,3025.5,0.306504]
[1764542343250,0.49161216,3025.6,3025.5,0.306504]
[1764542344286,3.79674172,3025.6,3025.5,0.306504]
[1764542347256,4.12547188,3025.6,3025.5,0.306504]
[1764542347457,4.59737188,3025.6,3025.5,0.306504]
[1764542347670,3.79674172,3025.6,3025.5,0.306504]
[1764542351059,0.49161216,3025.6,3025.5,0.306504]
[1764542351886,0.03501216,3025.6,3025.5,0.306504]
[1764542352790,0.03501216,3025.6,3025.5,1.280704]
[1764542353891,0.002,3025.6,3025.5,1.280704]
[1764542357086,0.002,3025.6,3025.5,0.793204]
[1764542357612,0.002,3025.6,3025.5,1.280704]
[1764542357839,0.002,3025.6,3025.5,0.793204]
[1764542359613,0.03301216,3025.8,3025.6,0.405504]
[1764542359766,0.03301216,3025.8,3025.7,0.892204]
[1764542359968,0.03501216,3026.0,3025.8,0.405504]
[1764542360210,0.03501216,3026.0,3025.9,0.892204]
[1764542361488,0.03501216,3026.0,3025.9,1.379704]
[1764542361685,0.002,3026.0,3025.9,1.379704]
[1764542362078,0.002,3026.0,3025.9,0.892204]
[1764542367422,0.002,3026.0,3025.9,1.389804]
[1764542369657,0.002,3026.0,3025.9,1.88018251]
[1764542375952,0.99261987,3026.1,3026.0,0.405504]
[1764542376126,0.99261987,3026.1,3026.0,0.857404]
[1764542379277,0.99461987,3026.1,3026.0,1.355004]
[1764542380159,0.002,3026.1,3026.0,4.65969666]
[1764542380335,0.002,3026.1,3026.0,5.50850004]
[1764542380542,0.002,3026.1,3026.0,2.20380738]
[1764542381047,0.002,3026.1,3026.0,5.50850004]
[1764542382958,0.002,3026.1,3026.0,2.20380738]
[1764542387973,0.002,3026.3,3026.0,2.20380738]
[1764542388171,0.002,3026.3,3026.2,0.857404]
[1764542395777,0.002,3026.5,3026.3,0.405504]
[1764542400183,0.4856,3026.4,3026.3,0.405504]
[1764542400400,0.9842,3026.4,3026.2,0.405504]
[1764542400585,0.4856,3026.3,3026.0,0.001]
[1764542400784,0.4856,3026.3,3026.1,0.405504]
[1764542400955,0.9842,3026.3,3026.1,0.405504]
[1764542401157,0.2158,3026.2,3026.0,0.001]
[1764542401385,0.99261001,3026.2,3026.1,0.4944]
[1764542401685,0.002,3026.5,3026.2,0.405504]
[1764542401870,0.002,3026.5,3026.4,0.899904]
[1764542402274,0.002,3026.7,3026.4,0.899904]
[1764542402466,0.002,3026.7,3026.6,0.899904]
[1764542403067,0.002,3026.7,3026.6,1.03220691]
[1764542403256,0.002,3026.7,3026.6,1.51200691]
[1764542403473,0.002,3026.7,3026.6,2.32405872]
[1764542404486,0.002,3026.7,3026.6,5.62809625]
[1764542404991,0.002,3027.0,3026.8,4.325652]
[1764542405189,0.002,3027.0,3026.9,1.588704]
[1764542405363,0.002,3027.0,3026.9,1.82013381]
[1764542406769,0.002,3027.0,3026.9,5.84943798]
[1764542410491,0.002,3027.0,3026.9,2.06592792]
[1764542410792,0.9862,3027.0,3026.9,0.99211762]
[1764542410992,0.9862,3027.0,3026.6,0.209]
[1764542411294,0.4856,3026.7,3026.6,0.209]
[1764542411493,0.4856,3026.7,3026.6,0.24204037]
[1764542411685,0.9842,3026.7,3026.1,3.46903712]
[1764542411866,0.2063,3026.6,3026.2,0.60398371]
[1764542412189,0.7049,3026.6,3026.4,0.405504]
[1764542412393,0.4828,3026.5,3026.4,0.405504]
[1764542412590,0.9814,3026.5,3026.4,0.405504]
[1764542413274,0.9814,3026.5,3026.3,0.405504]
[1764542413476,0.4986,3026.4,3026.3,0.405504]
[1764542413676,0.9842,3026.4,3026.3,0.405504]
[1764542413994,0.4856,3026.4,3026.3,0.405504]
[1764542414570,0.9842,3026.4,3026.2,0.209]
[1764542414798,0.2063,3026.3,3026.2,0.209]
[1764542415095,0.7049,3026.3,3026.2,0.614504]
[1764542420792,0.2063,3026.3,3026.2,0.614504]
[1764542423815,1.49107866,3026.5,3026.2,0.614504]
[1764542424021,1.49107866,3026.5,3026.3,0.405504]
[1764542424718,0.4805,3026.4,3026.2,0.24204474]
[1764542424903,0.4805,3026.4,3026.2,0.209]
[1764542424904,0.4933,3026.4,3026.2,0.209]
[1764542425217,3.33697011,3026.7,3026.3,0.887104]
[1764542425449,0.99246881,3026.6,3026.3,0.405504]
[1764542425727,0.4805,3026.4,3026.3,0.405504]
[1764542426681,0.99246881,3026.6,3026.3,0.92014765]
[1764542426904,0.99246881,3026.6,3026.5,0.887104]
[1764542427627,1.96626881,3026.6,3026.5,0.405504]
[1764542427790,1.99928097,3026.6,3026.5,0.405504]
[1764542431592,1.96626881,3026.6,3026.5,0.405504]
[1764542432317,5.27030634,3026.6,3026.5,0.405504]
[1764542433390,1.96626881,3026.6,3026.5,0.405504]
[1764542434607,1.47296881,3026.6,3026.5,0.405504]
[1764542435100,1.96626881,3026.6,3026.5,0.405504]
[1764542435305,0.9738,3026.6,3026.5,0.405504]
[1764542436024,4.27783753,3026.6,3026.5,0.405504]
[1764542436721,0.9738,3026.6,3026.5,0.405504]
[1764542437323,4.27783753,3026.6,3026.5,0.405504]
[1764542438818,0.9738,3026.6,3026.5,0.405504]
[1764542441326,4.27783753,3026.6,3026.5,0.405504]
[1764542442630,0.9738,3026.6,3026.5,0.405504]
[1764542444436,4.27783753,3026.6,3026.5,0.405504]
[1764542444734,0.9738,3026.6,3026.5,0.405504]
[1764542451237,0.4805,3026.6,3026.5,0.405504]
[1764542451628,0.9738,3026.6,3026.5,0.405504]
[1764542452413,0.03301216,3026.7,3026.3,0.405504]
[1764542452735,0.03301216,3026.7,3026.3,0.855504]
[1764542452958,0.52351216,3026.7,3026.3,0.855504]
[1764542453142,0.52351216,3026.7,3026.3,0.405504]
[1764542453337,3.82745521,3026.7,3026.2,0.405504]
[1764542453511,3.82745521,3026.7,3026.2,0.855504]
[1764542453912,0.4905,3026.6,3026.2,0.855504]
[1764542454112,0.03301216,3026.5,3026.2,0.855504]
[1764542454846,0.03301216,3026.5,3026.2,0.405504]
[1764542463331,0.52351216,3026.5,3026.2,0.405504]
[1764542466164,0.03301216,3026.5,3026.2,0.405504]
[1764542466741,0.03301216,3026.6,3026.2,0.405504]
[1764542467164,0.52351216,3026.6,3026.2,0.405504]
[1764542470969,2.78703701,3026.7,3026.2,0.405504]
[1764542471172,3.79632949,3026.8,3026.4,0.405504]
[1764542471668,3.30582949,3026.8,3026.4,0.405504]
[1764542471876,0.4905,3026.7,3026.4,0.405504]
[1764542473473,3.3058265,3026.8,3026.4,0.405504]
[1764542473674,3.7963265,3026.8,3026.4,0.405504]
[1764542475494,0.002,3026.8,3026.7,0.4753]
[1764542475655,0.002,3027.0,3026.8,0.405504]
[1764542475852,0.002,3027.0,3026.9,0.880804]
[1764542476868,0.002,3027.0,3026.9,1.330804]
[1764542478354,0.002,3027.2,3027.0,0.405504]
[1764542478582,0.002,3027.2,3027.1,7.88484727]
[1764542479175,0.002,3027.2,3027.1,8.33484727]
[1764542479550,0.002,3027.2,3027.1,13.71280906]
[1764542480169,0.1854,3028.1,3027.2,0.405504]
[1764542480372,3.49577606,3028.4,3027.7,0.405504]
[1764542480574,0.4905,3028.3,3027.7,0.405504]
[1764542480848,0.4905,3028.3,3027.6,0.855504]
[1764542481053,0.4905,3028.3,3027.7,0.209]
[1764542481275,0.4905,3028.3,3027.8,0.405504]
[1764542481649,0.4905,3028.3,3028.0,0.405504]
[1764542482061,0.1937,3028.4,3028.0,0.405504]
[1764542482297,0.6842,3028.4,3028.0,0.405504]
[1764542482658,0.6657,3028.4,3028.0,0.405504]
[1764542483303,0.472,3028.3,3027.9,0.405504]
[1764542484011,0.472,3028.3,3027.9,3.70812141]
[1764542484815,0.472,3028.3,3027.9,0.405504]
[1764542486072,3.77421473,3028.3,3027.8,0.405504]
[1764542486472,0.4594,3028.2,3027.8,0.405504]
[1764542489906,0.4776,3027.9,3027.8,0.405504]
[1764542490412,3.76169212,3028.2,3027.8,0.869504]
[1764542490710,0.4594,3028.1,3027.8,0.869504]
[1764542491510,3.76184373,3028.1,3027.8,1.077504]
[1764542492082,0.4594,3028.0,3027.8,1.077504]
[1764542492781,3.30244373,3028.1,3027.8,1.077504]
[1764542492980,0.4594,3028.0,3027.8,0.613504]
[1764542493510,0.4594,3028.0,3027.9,0.405504]
[1764542494805,0.937,3028.0,3027.9,0.405504]
[1764542495401,0.4776,3028.0,3027.9,0.405504]
[1764542498118,0.002,3028.3,3027.9,0.90253018]
[1764542498290,0.002,3028.3,3027.9,1.36603018]
[1764542498486,0.002,3028.3,3027.9,4.66864544]
[1764542500301,0.002,3028.3,3027.9,5.10145414]
[1764542500501,0.002,3028.3,3028.2,0.869504]
[1764542505105,0.4796,3028.3,3028.2,0.405504]
[1764542505728,0.002,3028.3,3028.2,0.405504]
[1764542509315,0.002,3028.3,3028.2,0.869504]
[1764542509627,0.002,3028.3,3028.2,0.90252691]
[1764542510600,0.002,3028.3,3028.2,0.869504]
[1764542512130,0.002,3028.3,3028.2,1.28999639]
[1764542512833,0.9695,3028.3,3028.2,0.405504]
[1764542514527,4.27168274,3028.3,3028.2,0.405504]
[1764542518603,0.9695,3028.3,3028.2,0.405504]
[1764542522108,1.29823016,3028.3,3028.2,0.405504]
[1764542522310,0.4837,3028.3,3028.2,0.405504]
[1764542522508,0.9695,3028.3,3028.2,0.405504]
[1764542526837,0.002,3028.3,3028.2,0.865404]
[1764542528416,0.002,3028.3,3028.2,0.405504]
[1764542530947,0.002,3028.7,3028.3,0.405504]
[1764542531183,0.002,3028.7,3028.5,0.405504]
[1764542531614,0.002,3028.7,3028.6,0.865404]
[1764542536234,0.002,3028.7,3028.6,1.347904]
[1764542538767,0.002,3028.7,3028.6,4.64975964]
[1764542539053,0.002,3028.7,3028.6,5.07951618]
[1764542540377,0.002,3028.7,3028.6,4.59701618]
[1764542540685,0.002,3028.7,3028.6,5.28751618]
[1764542540839,0.002,3028.8,3028.7,0.405504]
[1764542541027,0.002,3028.8,3028.7,2.20983622]
[1764542543068,0.002,3029.0,3028.8,0.32864066]
[1764542543237,0.002,3029.0,3028.9,0.891804]
[1764542544430,0.002,3029.0,3028.9,4.1933326]
[1764542545566,0.002,3029.0,3028.9,4.6855326]
[1764542545762,0.002,3029.0,3028.9,5.10788505]
[1764542547275,0.002,3029.1,3029.0,3.85072954]
[1764542547572,0.002,3029.1,3029.0,5.3658702]
[1764542548071,0.002,3029.1,3029.0,15.2993822]
[1764542548274,0.002,3029.1,3029.0,13.00303531]
[1764542548571,0.002,3029.1,3029.0,16.43521146]
[1764542549277,0.002,3029.1,3029.0,16.53037246]
[1764542550382,0.002,3029.1,3029.0,16.43521146]
[1764542550756,0.002,3029.1,3029.0,16.56739108]
[1764542551281,0.002,3029.1,3029.0,17.07023908]
[1764542551480,0.72559411,3030.8,3029.5,0.46]
[1764542551679,0.4899,3030.3,3029.6,5.00142954]
[1764542551982,3.29988387,3030.5,3029.6,5.51876249]
[1764542552186,3.78978387,3030.5,3029.6,5.84740315]
[1764542552480,0.4899,3030.3,3029.6,5.84740315]
[1764542552666,0.4899,3030.3,3029.6,9.14816892]
[1764542553351,0.4899,3030.5,3029.6,9.14816892]
[1764542553557,0.4899,3030.5,3029.6,8.81952826]
[1764542554854,0.4899,3030.5,3029.6,9.54512237]
[1764542555053,0.4899,3030.4,3029.6,9.54512237]
[1764542555553,0.1937,3031.0,3029.9,0.46]
[1764542555873,0.4899,3030.6,3030.1,0.405504]
[1764542556583,0.4899,3030.6,3030.3,0.405504]
[1764542556788,0.4899,3030.6,3030.3,3.70540496]
[1764542557198,0.4899,3030.8,3030.3,4.03404562]
[1764542557489,0.4899,3030.8,3030.3,5.02512753]
[1764542558467,0.002,3030.4,3030.3,5.02512753]
[1764542558870,0.002,3030.4,3030.3,5.48512753]
[1764542565899,0.002,3030.4,3030.3,5.15648687]
[1764542567097,0.002,3030.4,3030.3,4.69648687]
[1764542568402,0.002,3030.4,3030.3,5.1894869]
[1764542568771,0.002,3030.4,3030.3,4.7294869]
[1764542569467,0.4704,3030.4,3030.3,1.42958594]
[1764542569673,0.9603,3030.4,3030.3,1.42958594]
[1764542569894,0.4704,3030.4,3030.3,4.72958924]
[1764542570495,0.9603,3030.4,3030.3,4.72958924]
[1764542570905,0.9603,3030.4,3030.3,1.42958594]
[1764542571402,0.9603,3030.4,3030.3,4.72958924]
[1764542571706,0.9603,3030.4,3030.3,1.42958594]
[1764542572419,0.4704,3030.4,3030.3,4.72958924]
[1764542574405,0.9417,3030.4,3030.3,4.72958924]
[1764542575798,0.4704,3030.4,3030.3,1.42958594]
[1764542576121,0.4704,3030.4,3030.3,4.72958924]
[1764542576289,0.9417,3030.4,3030.3,4.72958924]
[1764542578323,0.4704,3030.4,3030.3,4.72958924]
[1764542579020,0.002,3030.4,3030.3,4.72958924]
[1764542580817,0.4872,3030.4,3030.3,4.72958924]
[1764542581186,0.9585,3030.4,3030.3,4.72958924]
[1764542581394,0.9585,3030.4,3030.3,1.42958594]
[1764542584433,0.002,3030.4,3030.3,1.91278594]
[1764542584603,0.4872,3030.4,3030.3,1.85193839]
[1764542584796,0.002,3030.4,3030.3,2.30213836]
[1764542584990,0.4872,3030.4,3030.3,1.81893836]
[1764542585195,0.4872,3030.4,3030.3,1.39658591]
[1764542586691,0.4872,3030.4,3030.3,4.69658921]
[1764542588218,0.002,3030.4,3030.3,5.17978921]
[1764542588726,0.002,3030.4,3030.3,5.21278924]
[1764542590327,0.002,3030.8,3030.3,5.70708924]
[1764542590491,0.002,3030.8,3030.5,0.405504]
[1764542590693,0.002,3030.8,3030.7,0.405504]
[1764542591124,0.4872,3030.8,3030.7,0.405504]
[1764542591323,0.002,3030.8,3030.7,0.888704]
[1764542591823,0.002,3030.8,3030.7,1.11539967]
[1764542592892,0.002,3030.8,3030.7,5.07443815]
[1764542593222,0.002,3030.8,3030.7,9.01396369]
[1764542593427,0.002,3030.8,3030.7,8.98096802]
[1764542595313,0.002,3031.1,3031.0,0.73414466]
[1764542595502,0.002,3031.1,3031.0,0.405504]
[1764542595703,0.4872,3031.1,3031.0,0.405504]
[1764542595903,0.4872,3031.1,3031.0,0.811008]
[1764542596928,0.4872,3031.1,3031.0,4.11024917]
[1764542596929,0.002,3031.1,3031.0,4.11024917]
[1764542597126,0.9585,3031.1,3031.0,0.811008]
[1764542597726,0.9585,3031.1,3031.0,0.84400041]
[1764542598032,0.002,3031.2,3031.1,0.405504]
[1764542598223,0.002,3031.2,3031.1,5.2883702]
[1764542598726,0.002,3031.2,3031.1,5.9445702]
[1764542599129,0.002,3031.2,3031.1,9.24370252]
[1764542599330,0.002,3031.2,3031.1,16.53497252]
[1764542599530,0.002,3031.2,3031.1,16.96176534]
[1764542600100,0.1956,3032.2,3031.4,0.4832]
[1764542600306,0.6669,3032.4,3031.7,1.13109811]
[1764542600505,0.6669,3032.4,3031.9,0.405504]
[1764542600838,0.6669,3032.4,3032.1,0.405504]
[1764542601241,0.6669,3032.4,3032.3,0.405504]
[1764542601735,1.1521,3032.4,3032.3,0.405504]
[1764542602718,0.4852,3032.4,3032.3,0.405504]
[1764542603306,0.6774,3032.6,3032.3,0.405504]
[1764542603506,0.6774,3032.6,3032.3,4.69375824]
[1764542603908,0.6774,3032.6,3032.3,3.70333073]
[1764542604110,0.6774,3032.6,3032.5,0.405504]
[1764542604535,1.1721,3032.6,3032.5,0.405504]
[1764542607811,1.1721,3032.6,3031.4,0.32864066]
[1764542607812,11.20474355,3032.6,3031.4,0.32864066]
[1764542608156,1.77807436,3032.5,3031.7,0.9905943]
[1764542608462,0.32873016,3032.4,3031.5,0.208]
[1764542608668,0.78913016,3032.4,3031.6,0.99063355]
[1764542608946,0.78913016,3032.4,3031.5,0.208]
[1764542608947,0.32873016,3032.1,3031.5,0.208]
[1764542609151,0.6913,3031.6,3030.7,3.29956775]
[1764542609339,0.4604,3031.5,3031.3,0.405504]
[1764542609574,0.4604,3031.5,3031.4,0.43849205]
[1764542609953,0.9551,3031.5,3031.4,0.43849205]
[1764542610589,0.9551,3031.5,3031.4,0.405504]
[1764542611351,4.25379701,3031.5,3031.4,0.405504]
[1764542611984,4.25379701,3031.5,3031.2,0.208]
[1764542612287,0.4604,3031.4,3031.3,0.03298914]
[1764542612581,0.9551,3031.4,3031.3,0.43849314]
[1764542615982,0.4947,3031.4,3031.3,0.43849314]
[1764542616154,0.1966,3031.6,3031.4,0.405504]
[1764542616355,0.657,3031.6,3031.3,0.405504]
[1764542616579,0.657,3031.6,3031.4,0.03298805]
[1764542616784,0.1966,3031.6,3031.4,0.03298805]
[1764542616952,0.4947,3031.5,3031.4,0.03298805]
[1764542617555,0.9551,3031.5,3031.4,0.03298805]
[1764542623993,0.9551,3031.5,3031.3,0.43849314]
[1764542624690,0.4947,3031.5,3031.3,0.43849314]
[1764542625698,3.29852372,3031.7,3031.3,0.43849314]
[1764542625894,0.4604,3031.6,3031.3,0.43849314]
[1764542627465,3.7590464,3031.6,3031.3,0.43949314]
[1764542627666,0.4947,3031.4,3031.3,0.43949314]
[1764542628000,0.4947,3031.4,3031.3,0.406504]
[1764542628239,0.9551,3031.4,3031.3,0.406504]
[1764542629805,4.25390583,3031.4,3031.3,0.406504]
[1764542630462,4.25390583,3031.4,3031.3,0.001]
[1764542630707,5.25023928,3031.4,3031.3,0.001]
[1764542630999,5.25023928,3031.4,3030.9,0.001]
[1764542631000,0.32873016,3031.1,3030.9,0.001]
[1764542631192,0.492,3031.0,3030.9,0.001]
[1764542631501,3.79124117,3031.0,3030.9,0.001]
[1764542631712,5.03959131,3031.0,3030.9,0.001]
[1764542631865,5.24759131,3031.0,3030.9,0.001]
[1764542632082,5.57632147,3031.0,3030.9,0.001]
[1764542638097,5.24759131,3031.0,3030.9,0.001]
[1764542638501,5.03959131,3031.0,3030.9,0.001]
[1764542638801,0.78833345,3031.4,3031.0,0.405504]
[1764542639118,3.79820583,3031.4,3031.0,0.405504]
[1764542640514,3.29880583,3031.4,3030.9,0.001]
[1764542640732,3.29880583,3031.4,3031.3,0.905404]
[1764542641014,3.29880583,3031.4,3031.3,0.405504]
[1764542641212,3.29880583,3031.4,3031.3,0.905404]
[1764542641418,3.29880583,3031.4,3031.3,0.405504]
[1764542641618,3.75400583,3031.4,3031.3,0.405504]
[1764542641920,4.95886767,3031.4,3031.3,0.405504]
[1764542642105,0.72559411,3031.3,3030.9,0.001]
[1764542642309,0.55293016,3031.0,3030.9,0.001]
[1764542642710,1.77792427,3031.0,3030.9,0.001]
[1764542642908,1.77792427,3031.0,3029.6,0.001]
[1764542642909,1.05432427,3030.7,3029.6,0.001]
[1764542643090,1.49772427,3030.7,3029.6,0.001]
[1764542643420,1.99712427,3030.7,3030.6,0.406504]
[1764542643621,5.29669202,3030.7,3030.6,0.001]
[1764542643818,5.29669202,3030.7,3030.6,0.406504]
[1764542644122,6.51873086,3030.7,3030.6,0.406504]
[1764542644686,6.51873086,3030.7,3030.6,0.001]
[1764542645434,4.49196684,3030.1,3029.6,0.001]
[1764542645728,7.49112956,3029.7,3029.6,0.001]
[1764542645891,8.57029651,3029.7,3029.6,0.001]
[1764542646091,9.06969651,3029.7,3029.6,0.001]
[1764542646291,9.79529062,3029.7,3029.6,0.001]
[1764542646542,6.35764805,3029.7,3029.6,0.001]
[1764542647038,6.56564805,3029.7,3029.6,0.001]
[1764542648142,6.56564805,3029.7,3029.6,0.406504]
[1764542648307,6.56564805,3029.7,3029.6,0.001]
[1764542650319,6.23691789,3029.7,3029.6,0.001]
[1764542650519,6.56564805,3029.7,3029.6,0.001]
[1764542652123,6.35764805,3029.7,3029.6,0.001]
[1764542652311,6.56564805,3029.7,3029.6,0.001]
[1764542653550,0.32873016,3029.3,3028.7,0.35416701]
[1764542653758,0.53673016,3029.3,3028.7,0.35416701]
[1764542653941,1.03613016,3029.3,3028.7,0.35416701]
[1764542654410,0.904904,3030.1,3029.2,0.6664]
[1764542654612,3.30033003,3030.0,3029.5,0.4999]
[1764542654814,3.30033003,3030.0,3029.9,0.4999]
[1764542655012,3.30026888,3030.1,3029.9,0.4999]
[1764542655213,3.2998944,3030.4,3029.9,0.984]
[1764542655427,3.2998944,3030.4,3030.3,0.905404]
[1764542655749,3.9806621,3030.4,3030.3,0.405504]
[1764542657450,3.9806621,3030.4,3030.3,0.905404]
[1764542661646,3.2998944,3030.4,3030.3,0.905404]
[1764542662354,6.59848234,3031.0,3030.4,0.405504]
[1764542662558,0.208,3030.9,3030.4,1.389504]
[1764542662848,0.5,3030.7,3030.4,1.389504]
[1764542663050,0.5,3030.7,3030.6,0.405504]
[1764542663250,0.5,3030.7,3030.6,0.880804]
[1764542663953,0.5,3030.7,3030.6,1.360204]
[1764542664156,0.5,3030.7,3030.2,0.884904]
[1764542664459,0.5,3030.7,3030.6,0.864504]
[1764542666350,3.30145947,3030.8,3030.7,0.405504]